[Event "Titled Tuesday Blitz April 26 Late 2022"]
[White "Siddharth, Jagadeesh"]
[Black "Toniutti, Ezio"]
[WhiteFideId "5818320"]
[BlackFideId "113034"]
[WhiteElo "2127"]
[BlackElo "2215"]
[Result "1-0"]
[Round "09"]
[TimeControl "180+1"]
[Date "2022.04.26"]
[WhiteClock "0:00:04"]
[BlackClock "0:00:01"]

1. e4 {[%clk 0:03:00]}  e5 {[%clk 0:02:58]} 2. Nf3 {[%clk 0:02:59]}  Nc6 {[%clk 0:02:58]} 3. Bc4 {[%clk 0:02:59]}  Nf6 {[%clk 0:02:57]} 4. d3 {[%clk 0:02:59]}  Be7 {[%clk 0:02:58]} 5. O-O {[%clk 0:02:58]}  O-O {[%clk 0:02:58]} 6. Nc3 {[%clk 0:02:54]}  d6 {[%clk 0:02:58]} 7. a3 {[%clk 0:02:54]}  Bg4 {[%clk 0:02:58]} 8. h3 {[%clk 0:02:52]}  Bh5 {[%clk 0:02:57]} 9. Be3 {[%clk 0:02:51]}  Nd7 {[%clk 0:02:54]} 10. Nd5 {[%clk 0:02:49]}  Nc5 {[%clk 0:02:54]} 11. b4 {[%clk 0:02:33]}  Ne6 {[%clk 0:02:53]} 12. c3 {[%clk 0:02:34]}  a6 {[%clk 0:02:43]} 13. a4 {[%clk 0:02:32]}  Qd7 {[%clk 0:02:37]} 14. g4 {[%clk 0:02:17]}  Bg6 {[%clk 0:02:34]} 15. Rb1 {[%clk 0:02:00]}  Bd8 {[%clk 0:02:32]} 16. Bb3 {[%clk 0:01:46]}  Ne7 {[%clk 0:02:27]} 17. a5 {[%clk 0:01:44]}  c6 {[%clk 0:02:18]} 18. Nxe7+ {[%clk 0:01:36]}  Bxe7 {[%clk 0:02:19]} 19. Bc2 {[%clk 0:01:35]}  Rad8 {[%clk 0:02:16]} 20. d4 {[%clk 0:01:34]}  exd4 {[%clk 0:02:14]} 21. Nxd4 {[%clk 0:01:34]}  d5 {[%clk 0:02:10]} 22. Nf5 {[%clk 0:01:19]}  Bf6 {[%clk 0:02:02]} 23. exd5 {[%clk 0:01:13]}  cxd5 {[%clk 0:02:01]} 24. Qd2 {[%clk 0:00:55]}  Qc6 {[%clk 0:01:53]} 25. g5 {[%clk 0:00:28]}  Bxf5 {[%clk 0:01:27]} 26. gxf6 {[%clk 0:00:28]}  Bxc2 {[%clk 0:01:22]} 27. fxg7 {[%clk 0:00:28]}  Kxg7 {[%clk 0:01:10]} 28. Bh6+ {[%clk 0:00:19]}  Kh8 {[%clk 0:01:04]} 29. Qxc2 {[%clk 0:00:16]}  Rg8+ {[%clk 0:01:04]} 30. Kh2 {[%clk 0:00:16]}  Rg6 {[%clk 0:00:54]} 31. Bd2 {[%clk 0:00:12]}  d4 {[%clk 0:00:49]} 32. f3 {[%clk 0:00:10]}  d3 {[%clk 0:00:44]} 33. Qd1 {[%clk 0:00:10]}  Rdg8 {[%clk 0:00:43]} 34. Rf2 {[%clk 0:00:09]}  Qd6+ {[%clk 0:00:43]} 35. Kh1 {[%clk 0:00:10]}  Rg3 {[%clk 0:00:32]} 36. Qf1 {[%clk 0:00:09]}  Nf4 {[%clk 0:00:21]} 37. Bxf4 {[%clk 0:00:09]}  Qxf4 {[%clk 0:00:21]} 38. Rd1 {[%clk 0:00:10]}  Qf5 {[%clk 0:00:20]} 39. Kh2 {[%clk 0:00:06]}  Qf4 {[%clk 0:00:11]} 40. Kh1 {[%clk 0:00:06]}  Qh4 {[%clk 0:00:08]} 41. Rh2 {[%clk 0:00:06]}  Qf4 {[%clk 0:00:07]} 42. Rxd3 {[%clk 0:00:06]}  f6 {[%clk 0:00:05]} 43. Rd1 {[%clk 0:00:07]}  Qe3 {[%clk 0:00:04]} 44. Re1 {[%clk 0:00:06]}  Qf4 {[%clk 0:00:01]} 45. Qf2 {[%clk 0:00:06]}  Qf5 {[%clk 0:00:02]} 46. Rf1 {[%clk 0:00:05]}  R3g5 {[%clk 0:00:02]} 47. h4 {[%clk 0:00:05]}  Rg3 {[%clk 0:00:02]} 48. Qd4 {[%clk 0:00:06]}  R3g7 {[%clk 0:00:01]} 49. h5 {[%clk 0:00:05]}  Rg5 {[%clk 0:00:01]} 50. h6 {[%clk 0:00:06]}  R5g6 {[%clk 0:00:01]} 51. Qe3 {[%clk 0:00:04]} 1-0


[Site "https://www.chess.com"]

[Event "Titled Tuesday Blitz April 26 Late 2022"]
[White "Sliwicka, Alicja"]
[Black "Nazaretyan, Tigran"]
[WhiteFideId "1150677"]
[BlackFideId "24162345"]
[WhiteElo "2120"]
[BlackElo "2225"]
[Result "1-0"]
[Round "09"]
[TimeControl "180+1"]
[Date "2022.04.26"]
[WhiteClock "0:01:33"]
[BlackClock "0:00:20"]

1. e4 {[%clk 0:03:00]}  c5 {[%clk 0:02:47]} 2. Nf3 {[%clk 0:02:59]}  Nc6 {[%clk 0:02:47]} 3. d4 {[%clk 0:02:59]}  cxd4 {[%clk 0:02:47]} 4. Nxd4 {[%clk 0:03:00]}  Nf6 {[%clk 0:02:48]} 5. Nc3 {[%clk 0:03:00]}  d6 {[%clk 0:02:48]} 6. Bg5 {[%clk 0:02:59]}  e6 {[%clk 0:02:48]} 7. Bb5 {[%clk 0:02:59]}  Bd7 {[%clk 0:02:46]} 8. Bxc6 {[%clk 0:02:59]}  bxc6 {[%clk 0:02:45]} 9. Qf3 {[%clk 0:02:59]}  Qb6 {[%clk 0:02:39]} 10. O-O-O {[%clk 0:02:58]}  Be7 {[%clk 0:02:38]} 11. Nb3 {[%clk 0:02:47]}  e5 {[%clk 0:02:29]} 12. Nd2 {[%clk 0:02:33]}  Bg4 {[%clk 0:02:27]} 13. Qd3 {[%clk 0:02:19]}  Bxd1 {[%clk 0:02:24]} 14. Rxd1 {[%clk 0:02:20]}  Qxf2 {[%clk 0:02:08]} 15. Nc4 {[%clk 0:02:20]}  Rd8 {[%clk 0:02:03]} 16. Ne3 {[%clk 0:02:18]}  h6 {[%clk 0:01:34]} 17. Rf1 {[%clk 0:02:12]}  Qxf1+ {[%clk 0:01:32]} 18. Qxf1 {[%clk 0:02:11]}  hxg5 {[%clk 0:01:33]} 19. Nf5 {[%clk 0:02:07]}  Bf8 {[%clk 0:01:22]} 20. Qa6 {[%clk 0:02:04]}  Rxh2 {[%clk 0:00:46]} 21. Qxc6+ {[%clk 0:02:03]}  Nd7 {[%clk 0:00:45]} 22. Nd5 {[%clk 0:01:51]}  f6 {[%clk 0:00:39]} 23. Nxd6+ {[%clk 0:01:51]}  Bxd6 {[%clk 0:00:37]} 24. Qxd6 {[%clk 0:01:52]}  Kf7 {[%clk 0:00:29]} 25. Qe7+ {[%clk 0:01:51]}  Kg6 {[%clk 0:00:29]} 26. Qxd8 {[%clk 0:01:51]}  Nc5 {[%clk 0:00:29]} 27. Qe8+ {[%clk 0:01:47]}  Kh7 {[%clk 0:00:29]} 28. Nxf6+ {[%clk 0:01:47]}  gxf6 {[%clk 0:00:29]} 29. Qe7+ {[%clk 0:01:47]}  Kg6 {[%clk 0:00:29]} 30. Qxc5 {[%clk 0:01:48]}  Rxg2 {[%clk 0:00:29]} 31. Qe3 {[%clk 0:01:36]}  g4 {[%clk 0:00:29]} 32. c4 {[%clk 0:01:35]}  f5 {[%clk 0:00:20]} 33. exf5+ {[%clk 0:01:33]}  Kxf5 {[%clk 0:00:20]} 34. c5 {[%clk 0:01:32]}  g3 {[%clk 0:00:19]} 35. Qf3+ {[%clk 0:01:32]}  Ke6 {[%clk 0:00:20]} 36. Qxg2 {[%clk 0:01:33]} 1-0


[Site "https://www.chess.com"]

[Event "Titled Tuesday Blitz April 26 Late 2022"]
[White "Song, Guannan Terry"]
[Black "Kanyamarala, Trisha"]
[WhiteFideId "2614189"]
[BlackFideId "45004722"]
[WhiteElo "2115"]
[BlackElo "2079"]
[Result "1-0"]
[Round "09"]
[TimeControl "180+1"]
[Date "2022.04.26"]
[WhiteClock "0:01:06"]
[BlackClock "0:00:08"]

1. e4 {[%clk 0:02:58]}  c5 {[%clk 0:02:58]} 2. Nc3 {[%clk 0:02:58]}  d6 {[%clk 0:02:58]} 3. f4 {[%clk 0:02:58]}  a6 {[%clk 0:02:56]} 4. Nf3 {[%clk 0:02:59]}  b5 {[%clk 0:02:56]} 5. d4 {[%clk 0:02:56]}  cxd4 {[%clk 0:02:55]} 6. Nxd4 {[%clk 0:02:56]}  Bb7 {[%clk 0:02:56]} 7. Bd3 {[%clk 0:02:56]}  Nc6 {[%clk 0:02:56]} 8. Be3 {[%clk 0:02:55]}  Nf6 {[%clk 0:02:55]} 9. O-O {[%clk 0:02:52]}  e6 {[%clk 0:02:55]} 10. Qf3 {[%clk 0:02:49]}  Be7 {[%clk 0:02:50]} 11. Rad1 {[%clk 0:02:46]}  b4 {[%clk 0:02:47]} 12. Nce2 {[%clk 0:02:40]}  O-O {[%clk 0:02:46]} 13. Nxc6 {[%clk 0:02:38]}  Bxc6 {[%clk 0:02:46]} 14. Nd4 {[%clk 0:02:39]}  Bb7 {[%clk 0:02:45]} 15. Rfe1 {[%clk 0:02:35]}  Qc7 {[%clk 0:02:41]} 16. Kh1 {[%clk 0:02:30]}  Rac8 {[%clk 0:02:31]} 17. Bg1 {[%clk 0:02:28]}  d5 {[%clk 0:02:12]} 18. e5 {[%clk 0:02:20]}  Ne4 {[%clk 0:02:12]} 19. Qh5 {[%clk 0:02:05]}  Bc5 {[%clk 0:02:00]} 20. Re3 {[%clk 0:01:46]}  g6 {[%clk 0:01:42]} 21. Qh6 {[%clk 0:01:44]}  Qe7 {[%clk 0:01:11]} 22. Rh3 {[%clk 0:01:37]}  f6 {[%clk 0:01:05]} 23. Nxe6 {[%clk 0:01:35]}  Bxg1 {[%clk 0:01:03]} 24. Bxe4 {[%clk 0:01:32]}  dxe4 {[%clk 0:00:51]} 25. Nxf8 {[%clk 0:01:31]}  Rxf8 {[%clk 0:00:44]} 26. exf6 {[%clk 0:01:24]}  Rxf6 {[%clk 0:00:21]} 27. Kxg1 {[%clk 0:01:23]}  Rf7 {[%clk 0:00:13]} 28. Qh4 {[%clk 0:01:21]}  Qc5+ {[%clk 0:00:10]} 29. Qf2 {[%clk 0:01:20]}  Qc6 {[%clk 0:00:10]} 30. Rd8+ {[%clk 0:01:18]}  Kg7 {[%clk 0:00:09]} 31. Qd4+ {[%clk 0:01:17]}  Qf6 {[%clk 0:00:09]} 32. Re3 {[%clk 0:01:08]}  Qxd4 {[%clk 0:00:09]} 33. Rxd4 {[%clk 0:01:09]}  Rc7 {[%clk 0:00:09]} 34. c3 {[%clk 0:01:08]}  bxc3 {[%clk 0:00:08]} 35. Rxc3 {[%clk 0:01:08]}  Rf7 {[%clk 0:00:08]} 36. Re3 {[%clk 0:01:06]}  Rxf4 {[%clk 0:00:06]} 37. Rd7+ {[%clk 0:01:06]}  Rf7 {[%clk 0:00:06]} 38. Rxf7+ {[%clk 0:01:06]}  Kxf7 {[%clk 0:00:07]} 39. Kf2 {[%clk 0:01:06]}  Bd5 {[%clk 0:00:06]} 40. Ra3 {[%clk 0:01:06]}  Ke6 {[%clk 0:00:07]} 41. Rxa6+ {[%clk 0:01:05]}  Ke5 {[%clk 0:00:07]} 42. Ke3 {[%clk 0:01:05]}  g5 {[%clk 0:00:07]} 43. Ra5 {[%clk 0:01:06]}  h5 {[%clk 0:00:07]} 44. b4 {[%clk 0:01:05]}  g4 {[%clk 0:00:08]} 45. a4 {[%clk 0:01:05]}  Kd6 {[%clk 0:00:08]} 46. Rxd5+ {[%clk 0:01:04]}  Kxd5 {[%clk 0:00:08]} 47. a5 {[%clk 0:01:05]}  Kc6 {[%clk 0:00:08]} 48. a6 {[%clk 0:01:06]} 1-0


[Site "https://www.chess.com"]

[Event "Titled Tuesday Blitz April 26 Late 2022"]
[White "Spata, German"]
[Black "Maksimovic, Bojan"]
[WhiteFideId "113026"]
[BlackFideId "14408120"]
[WhiteElo "2238"]
[BlackElo "2448"]
[Result "0-1"]
[Round "09"]
[TimeControl "180+1"]
[Date "2022.04.26"]
[WhiteClock "0:00:03"]
[BlackClock "0:00:05"]

1. Nf3 {[%clk 0:02:58]}  d6 {[%clk 0:03:00]} 2. d4 {[%clk 0:02:58]}  g6 {[%clk 0:02:59]} 3. e3 {[%clk 0:02:59]}  Bg7 {[%clk 0:03:00]} 4. Be2 {[%clk 0:03:00]}  e5 {[%clk 0:03:00]} 5. O-O {[%clk 0:03:01]}  Nc6 {[%clk 0:02:57]} 6. c4 {[%clk 0:02:58]}  Nge7 {[%clk 0:02:57]} 7. Nc3 {[%clk 0:02:58]}  O-O {[%clk 0:02:57]} 8. b3 {[%clk 0:02:52]}  exd4 {[%clk 0:02:56]} 9. Nxd4 {[%clk 0:02:51]}  Nxd4 {[%clk 0:02:55]} 10. exd4 {[%clk 0:02:52]}  Nf5 {[%clk 0:02:56]} 11. Be3 {[%clk 0:02:40]}  Nxe3 {[%clk 0:02:56]} 12. fxe3 {[%clk 0:02:40]}  c6 {[%clk 0:02:56]} 13. Qd3 {[%clk 0:02:33]}  Qe7 {[%clk 0:02:56]} 14. Bf3 {[%clk 0:02:29]}  Bd7 {[%clk 0:02:55]} 15. Rae1 {[%clk 0:02:29]}  Rae8 {[%clk 0:02:55]} 16. e4 {[%clk 0:02:24]}  Bc8 {[%clk 0:02:47]} 17. Rd1 {[%clk 0:02:23]}  Qg5 {[%clk 0:02:39]} 18. Rfe1 {[%clk 0:02:20]}  h5 {[%clk 0:02:38]} 19. Kh1 {[%clk 0:02:10]}  h4 {[%clk 0:02:33]} 20. h3 {[%clk 0:01:56]}  c5 {[%clk 0:02:33]} 21. Nb5 {[%clk 0:01:51]}  cxd4 {[%clk 0:02:25]} 22. Nxd6 {[%clk 0:01:45]}  Rd8 {[%clk 0:02:19]} 23. Nxc8 {[%clk 0:01:30]}  Rxc8 {[%clk 0:02:20]} 24. e5 {[%clk 0:01:20]}  Bxe5 {[%clk 0:02:19]} 25. Qe4 {[%clk 0:01:15]}  Rce8 {[%clk 0:02:03]} 26. Qg4 {[%clk 0:01:12]}  Qxg4 {[%clk 0:02:02]} 27. Bxg4 {[%clk 0:01:13]}  Bg3 {[%clk 0:01:59]} 28. Rxe8 {[%clk 0:01:05]}  Rxe8 {[%clk 0:02:00]} 29. Kg1 {[%clk 0:01:02]}  b6 {[%clk 0:01:59]} 30. Kf1 {[%clk 0:01:02]}  f5 {[%clk 0:01:46]} 31. Be2 {[%clk 0:01:00]}  Rd8 {[%clk 0:01:45]} 32. Bf3 {[%clk 0:01:01]}  Kg7 {[%clk 0:01:37]} 33. Bd5 {[%clk 0:01:00]}  Re8 {[%clk 0:01:38]} 34. Bf3 {[%clk 0:00:59]}  Kf6 {[%clk 0:01:37]} 35. Be2 {[%clk 0:00:59]}  Rd8 {[%clk 0:01:37]} 36. Bf3 {[%clk 0:00:56]}  Ke5 {[%clk 0:01:30]} 37. Ke2 {[%clk 0:00:56]}  a5 {[%clk 0:01:20]} 38. Kd3 {[%clk 0:00:55]}  Kf6 {[%clk 0:01:15]} 39. Rd2 {[%clk 0:00:55]}  Bf4 {[%clk 0:01:07]} 40. Rc2 {[%clk 0:00:51]}  Be3 {[%clk 0:00:45]} 41. c5 {[%clk 0:00:51]}  bxc5 {[%clk 0:00:45]} 42. Rxc5 {[%clk 0:00:51]}  Kg5 {[%clk 0:00:46]} 43. Rc6 {[%clk 0:00:41]}  Rg8 {[%clk 0:00:40]} 44. Ra6 {[%clk 0:00:35]}  Rc8 {[%clk 0:00:38]} 45. Rc6 {[%clk 0:00:35]}  Rg8 {[%clk 0:00:35]} 46. Bd5 {[%clk 0:00:34]}  Rg7 {[%clk 0:00:34]} 47. Rc5 {[%clk 0:00:29]}  Kf4 {[%clk 0:00:30]} 48. Rxa5 {[%clk 0:00:21]}  Rc7 {[%clk 0:00:31]} 49. Bc4 {[%clk 0:00:21]}  Kg3 {[%clk 0:00:31]} 50. Ra6 {[%clk 0:00:21]}  g5 {[%clk 0:00:22]} 51. Rf6 {[%clk 0:00:19]}  Kxg2 {[%clk 0:00:20]} 52. Rxf5 {[%clk 0:00:19]}  Kxh3 {[%clk 0:00:21]} 53. Ke4 {[%clk 0:00:15]}  Re7+ {[%clk 0:00:16]} 54. Kd3 {[%clk 0:00:12]}  g4 {[%clk 0:00:16]} 55. Rh5 {[%clk 0:00:04]}  g3 {[%clk 0:00:08]} 56. Bd5 {[%clk 0:00:05]}  g2 {[%clk 0:00:05]} 57. Bxg2+ {[%clk 0:00:05]}  Kxg2 {[%clk 0:00:06]} 58. Rxh4 {[%clk 0:00:06]}  Ra7 {[%clk 0:00:05]} 59. a4 {[%clk 0:00:04]}  Rc7 {[%clk 0:00:06]} 60. Rh7 {[%clk 0:00:02]}  Rxh7 {[%clk 0:00:05]} 61. Ke4 {[%clk 0:00:03]}  Rb7 {[%clk 0:00:05]} 0-1


[Site "https://www.chess.com"]

[Event "Titled Tuesday Blitz April 26 Late 2022"]
[White "Swiercz, Dariusz"]
[Black "Rosen, Eric"]
[WhiteFideId "1126881"]
[BlackFideId "2032562"]
[WhiteElo "2627"]
[BlackElo "2362"]
[Result "1-0"]
[Round "09"]
[TimeControl "180+1"]
[Date "2022.04.26"]
[WhiteClock "0:00:04"]
[BlackClock "0:00:01"]

1. c4 {[%clk 0:03:00]}  e6 {[%clk 0:02:51]} 2. Nc3 {[%clk 0:02:58]}  d5 {[%clk 0:02:50]} 3. d4 {[%clk 0:02:58]}  Nf6 {[%clk 0:02:50]} 4. Nf3 {[%clk 0:02:53]}  a6 {[%clk 0:02:50]} 5. e3 {[%clk 0:02:50]}  Nbd7 {[%clk 0:02:39]} 6. b3 {[%clk 0:02:41]}  Bb4 {[%clk 0:02:30]} 7. Bd2 {[%clk 0:02:41]}  c6 {[%clk 0:02:27]} 8. Bd3 {[%clk 0:02:38]}  Bd6 {[%clk 0:02:26]} 9. Qc2 {[%clk 0:02:36]}  O-O {[%clk 0:02:24]} 10. O-O {[%clk 0:02:30]}  e5 {[%clk 0:02:06]} 11. cxd5 {[%clk 0:02:30]}  cxd5 {[%clk 0:02:04]} 12. e4 {[%clk 0:02:31]}  exd4 {[%clk 0:01:43]} 13. Nxd5 {[%clk 0:02:31]}  Nxd5 {[%clk 0:01:36]} 14. exd5 {[%clk 0:02:31]}  Nf6 {[%clk 0:01:36]} 15. Bg5 {[%clk 0:01:58]}  h6 {[%clk 0:01:35]} 16. Bh4 {[%clk 0:01:58]}  Bg4 {[%clk 0:01:32]} 17. Nxd4 {[%clk 0:01:52]}  Be5 {[%clk 0:01:32]} 18. Nf5 {[%clk 0:01:04]}  Bxa1 {[%clk 0:01:22]} 19. Rxa1 {[%clk 0:01:04]}  Bxf5 {[%clk 0:01:21]} 20. Bxf5 {[%clk 0:01:04]}  Qd6 {[%clk 0:01:22]} 21. Rd1 {[%clk 0:00:59]}  Rfe8 {[%clk 0:01:12]} 22. Bg3 {[%clk 0:00:50]}  Qxd5 {[%clk 0:01:09]} 23. h3 {[%clk 0:00:44]}  Qc6 {[%clk 0:00:55]} 24. Qxc6 {[%clk 0:00:32]}  bxc6 {[%clk 0:00:55]} 25. Rc1 {[%clk 0:00:33]}  g6 {[%clk 0:00:44]} 26. Bd3 {[%clk 0:00:32]}  Nd5 {[%clk 0:00:26]} 27. a3 {[%clk 0:00:24]}  Re6 {[%clk 0:00:25]} 28. Bc4 {[%clk 0:00:20]}  a5 {[%clk 0:00:25]} 29. Kh2 {[%clk 0:00:19]}  Rae8 {[%clk 0:00:24]} 30. Rc2 {[%clk 0:00:18]}  Kg7 {[%clk 0:00:22]} 31. h4 {[%clk 0:00:19]}  h5 {[%clk 0:00:22]} 32. Rd2 {[%clk 0:00:18]}  Rd8 {[%clk 0:00:13]} 33. Bc7 {[%clk 0:00:17]}  Ra8 {[%clk 0:00:12]} 34. Bg3 {[%clk 0:00:16]}  Re4 {[%clk 0:00:08]} 35. a4 {[%clk 0:00:10]}  Nf6 {[%clk 0:00:08]} 36. Rc2 {[%clk 0:00:07]}  Ng4+ {[%clk 0:00:08]} 37. Kh3 {[%clk 0:00:08]}  Re1 {[%clk 0:00:09]} 38. Bf4 {[%clk 0:00:06]}  Rh1+ {[%clk 0:00:08]} 39. Kg3 {[%clk 0:00:07]}  Re8 {[%clk 0:00:06]} 40. Be2 {[%clk 0:00:04]}  Re6 {[%clk 0:00:06]} 41. Bf3 {[%clk 0:00:03]}  Rb1 {[%clk 0:00:06]} 42. Bxc6 {[%clk 0:00:02]}  Rxb3+ {[%clk 0:00:05]} 43. f3 {[%clk 0:00:02]}  Ra3 {[%clk 0:00:04]} 44. Bd5 {[%clk 0:00:01]}  Re1 {[%clk 0:00:04]} 45. Rc7 {[%clk 0:00:01]}  Nh6 {[%clk 0:00:03]} 46. Bg5 {[%clk 0:00:01]}  Nf5+ {[%clk 0:00:03]} 47. Kf4 {[%clk 0:00:01]}  Rxa4+ {[%clk 0:00:03]} 48. Be4 {[%clk 0:00:01]}  Rb1 {[%clk 0:00:02]} 49. g4 {[%clk 0:00:02]}  hxg4 {[%clk 0:00:02]} 50. fxg4 {[%clk 0:00:03]}  Rf1+ {[%clk 0:00:03]} 51. Ke5 {[%clk 0:00:03]}  Rxe4+ {[%clk 0:00:03]} 52. Kxe4 {[%clk 0:00:03]}  Ng3+ {[%clk 0:00:03]} 53. Ke3 {[%clk 0:00:03]}  a4 {[%clk 0:00:03]} 54. Bf4 {[%clk 0:00:04]}  Nh1 {[%clk 0:00:02]} 55. Be5+ {[%clk 0:00:04]}  Kf8 {[%clk 0:00:02]} 56. Bd6+ {[%clk 0:00:04]}  Ke8 {[%clk 0:00:02]} 57. Re7+ {[%clk 0:00:05]}  Kd8 {[%clk 0:00:02]} 58. Ra7 {[%clk 0:00:05]}  Rg1 {[%clk 0:00:01]} 59. g5 {[%clk 0:00:06]}  Rg4 {[%clk 0:00:01]} 60. Kf3 {[%clk 0:00:06]}  Rd4 {[%clk 0:00:01]} 61. Be5 {[%clk 0:00:06]}  Rd3+ {[%clk 0:00:02]} 62. Ke2 {[%clk 0:00:06]}  Ra3 {[%clk 0:00:02]} 63. Bf6+ {[%clk 0:00:06]}  Kc8 {[%clk 0:00:02]} 64. Rxf7 {[%clk 0:00:05]}  Rh3 {[%clk 0:00:03]} 65. Ra7 {[%clk 0:00:04]}  Ng3+ {[%clk 0:00:03]} 66. Kf3 {[%clk 0:00:05]}  Nf5+ {[%clk 0:00:03]} 67. Kg4 {[%clk 0:00:05]}  Rxh4+ {[%clk 0:00:04]} 68. Kf3 {[%clk 0:00:05]}  Rc4 {[%clk 0:00:04]} 69. Ke2 {[%clk 0:00:05]}  Kb8 {[%clk 0:00:04]} 70. Ra6 {[%clk 0:00:05]}  Kb7 {[%clk 0:00:04]} 71. Ra5 {[%clk 0:00:05]}  Kb6 {[%clk 0:00:04]} 72. Ra8 {[%clk 0:00:05]}  Kb5 {[%clk 0:00:04]} 73. Kd3 {[%clk 0:00:06]}  Rg4 {[%clk 0:00:04]} 74. Rb8+ {[%clk 0:00:06]}  Kc6 {[%clk 0:00:04]} 75. Rc8+ {[%clk 0:00:07]}  Kd5 {[%clk 0:00:05]} 76. Ra8 {[%clk 0:00:07]}  Kc6 {[%clk 0:00:05]} 77. Rc8+ {[%clk 0:00:07]}  Kd7 {[%clk 0:00:05]} 78. Rd8+ {[%clk 0:00:07]}  Ke6 {[%clk 0:00:06]} 79. Ra8 {[%clk 0:00:07]}  Rg3+ {[%clk 0:00:06]} 80. Ke4 {[%clk 0:00:07]}  Rh3 {[%clk 0:00:06]} 81. Ra6+ {[%clk 0:00:06]}  Kd7 {[%clk 0:00:06]} 82. Ke5 {[%clk 0:00:06]}  Re3+ {[%clk 0:00:06]} 83. Kd5 {[%clk 0:00:06]}  Rd3+ {[%clk 0:00:06]} 84. Kc4 {[%clk 0:00:06]}  Ra3 {[%clk 0:00:06]} 85. Kd5 {[%clk 0:00:04]}  Ne3+ {[%clk 0:00:06]} 86. Kc5 {[%clk 0:00:04]}  Nf5 {[%clk 0:00:06]} 87. Kd5 {[%clk 0:00:04]}  Rd3+ {[%clk 0:00:05]} 88. Kc4 {[%clk 0:00:04]}  Rh3 {[%clk 0:00:05]} 89. Kd5 {[%clk 0:00:04]}  a3 {[%clk 0:00:04]} 90. Ra7+ {[%clk 0:00:04]}  Kc8 {[%clk 0:00:05]} 91. Kc6 {[%clk 0:00:04]}  Kb8 {[%clk 0:00:04]} 92. Ra4 {[%clk 0:00:02]}  Rb3 {[%clk 0:00:02]} 93. Be5+ {[%clk 0:00:02]}  Kc8 {[%clk 0:00:01]} 94. Ra8+ {[%clk 0:00:03]}  Rb8 {[%clk 0:00:01]} 95. Rxb8# {[%clk 0:00:04]} 1-0


[Site "https://www.chess.com"]

[Event "Titled Tuesday Blitz April 26 Late 2022"]
[White "Szpar, Milosz"]
[Black "Chuemsakul, Sarocha"]
[WhiteFideId "1184989"]
[BlackFideId "6203710"]
[WhiteElo "2447"]
[BlackElo "1703"]
[Result "1-0"]
[Round "09"]
[TimeControl "180+1"]
[Date "2022.04.26"]
[WhiteClock "0:01:29"]
[BlackClock "0:00:49"]

1. e4 {[%clk 0:03:00]}  g6 {[%clk 0:02:59]} 2. d4 {[%clk 0:03:00]}  Bg7 {[%clk 0:02:59]} 3. Nf3 {[%clk 0:03:01]}  d6 {[%clk 0:02:57]} 4. Bd3 {[%clk 0:03:00]}  Bg4 {[%clk 0:02:56]} 5. c3 {[%clk 0:02:57]}  c5 {[%clk 0:02:52]} 6. Nbd2 {[%clk 0:02:51]}  cxd4 {[%clk 0:02:48]} 7. cxd4 {[%clk 0:02:51]}  Nf6 {[%clk 0:02:29]} 8. O-O {[%clk 0:02:48]}  O-O {[%clk 0:02:29]} 9. h3 {[%clk 0:02:48]}  Bxf3 {[%clk 0:02:17]} 10. Nxf3 {[%clk 0:02:49]}  Nc6 {[%clk 0:02:16]} 11. Re1 {[%clk 0:02:47]}  e5 {[%clk 0:01:49]} 12. dxe5 {[%clk 0:02:27]}  dxe5 {[%clk 0:01:45]} 13. Be3 {[%clk 0:02:24]}  Re8 {[%clk 0:01:31]} 14. Rc1 {[%clk 0:02:21]}  Nd4 {[%clk 0:01:29]} 15. Bxd4 {[%clk 0:01:56]}  exd4 {[%clk 0:01:29]} 16. Qb3 {[%clk 0:01:57]}  Qd7 {[%clk 0:01:22]} 17. Bb5 {[%clk 0:01:56]}  Qe6 {[%clk 0:01:17]} 18. Bxe8 {[%clk 0:01:56]}  Qxb3 {[%clk 0:01:17]} 19. axb3 {[%clk 0:01:56]}  Rxe8 {[%clk 0:01:18]} 20. Nxd4 {[%clk 0:01:50]}  Nxe4 {[%clk 0:01:07]} 21. Nb5 {[%clk 0:01:49]}  a6 {[%clk 0:00:51]} 22. Nc3 {[%clk 0:01:29]}  f6 {[%clk 0:00:49]} 1-0


[Site "https://www.chess.com"]